Cogmind - Beta 15 @@@ ROGUE MODE // 2025.06.22 @ 15:32:37 Player: Waste Result: Destroyed by OX-M9E(R) with Subdweller Machine Gun Performance ------------- Evolutions (0) 0 Regions Visited (3) 600 Robots Destroyed (22) 110 Value Destroyed (694) 694 Prototype IDs (4) 80 Alien Tech Used (0) 0 Bonus (0) 0 TOTAL SCORE: 1484 Bonus ------- None Cogmind --------- Core Integrity 0/250 Matter 279/300 Energy 200/200 System Corruption 2% Temperature Cool (11) Movement Walking (190) Ox1 Location -10/Subcaves Parts ------- > --- POWER (1) -------- Subdweller Power Source > --- PROPULSION (2) --- Aluminum Leg Aluminum Leg > --- UTILITY (2) ------ Large Storage Unit Light Armor Plating > --- WEAPON (2) ------- Subdweller Beam Cannon Subdweller Machine Gun > --- INVENTORY (15) --- Subdweller Power Source Light Treads Light Treads Aluminum Leg Aluminum Leg Aluminum Leg Compact Wheel Subdweller Monowheel Structural Scanner Particle Gun Particle Gun Light Assault Rifle Subdweller Machine Gun Grenade Launcher Peak State ------------ > --- POWER ------------ Subdweller Power Source > --- PROPULSION ------- Aluminum Leg Aluminum Leg > --- UTILITY ---------- Large Storage Unit Light Armor Plating > --- WEAPON ----------- EM Pulse Gun Subdweller Beam Cannon > --- INVENTORY -------- Subdweller Power Source Light Treads Light Treads Aluminum Leg Aluminum Leg Aluminum Leg Compact Wheel Subdweller Monowheel Structural Scanner Particle Gun Particle Gun Light Assault Rifle Subdweller Machine Gun Subdweller Machine Gun Grenade Launcher [Rating: 11] Favorites ----------- Power Ion Engine Engine Ion Engine Propulsion Aluminum Leg Leg Aluminum Leg Utility Light Armor Plating Storage Large Storage Unit Protection Light Armor Plating Weapon Beam Cannon Energy Gun Particle Gun Energy Cannon Beam Cannon Ballistic Gun Light Assault Rifle Build | -11 -10 -10 -10 ------- Run | Yrd Mat Min Sub Slots Evolved . | . . . . Power . | . . . . Propulsion . | . . . . Utility . | . . . . Weapon . | . . . . Parts Attached 16 | 1 9 3 3 Power 2 | . 1 . 1 Engine 2 | . 1 . 1 Core . | . . . . Reactor . | . . . . Propulsion 4 | . 3 1 . Treads . | . . . . Leg 4 | . 3 1 . Wheel . | . . . . Hover . | . . . . Flight . | . . . . Utility 4 | . 3 1 . Device . | . . . . Storage 1 | . 1 . . Processor . | . . . . Hackware . | . . . . Protection 3 | . 2 1 . Artifact . | . . . . Weapon 6 | 1 2 1 2 Energy Gun 3 | 1 1 1 . Energy Cannon 2 | . 1 . 1 Ballistic Gun 1 | . . . 1 Ballistic Cannon . | . . . . Launcher . | . . . . Special Weapon . | . . . . Impact Weapon . | . . . . Slashing Weapon . | . . . . Piercing Weapon . | . . . . Special Melee Weapon . | . . . . Unidentified Prototypes . | . . . . Parts Lost 5 | . 2 1 2 Power 2 | . 1 . 1 Propulsion . | . . . . Utility 2 | . 1 1 . Weapon 1 | . . . 1 Highest Loss Streak 1 | . 1 1 1 To Critical Strikes . | . . . . Average Backups 9 | 6 8 9 12 Power . | 1 . . . Propulsion 5 | 4 4 5 6 Utility 1 | . 1 1 1 Weapon 2 | 1 1 2 4 Tool/Special . | . . . . Unused Backups 15 | . 5 . 10 Power 2 | . 1 . 1 Propulsion 7 | . 3 . 4 Utility 2 | . 1 . 1 Weapon 4 | . . . 4 Tool/Special . | . . . . Average Slot Usage (%) 99 | . 98 100 99 Engine 13 | . 13 14 13 Leg 28 | . 28 28 28 Storage 14 | . 14 14 14 Protection 13 | . 12 14 14 Energy Gun 13 | . 14 14 13 Energy Cannon 10 | . 6 14 14 Ballistic Gun 3 | . 7 . . Peak Build Rating 11 | 6 8 9 11 Average Rating 8 | 6 7 8 8 On Entrance 7 | 6 6 8 8 Naked Turns . | . . . . Heaviest Build 38 | 10 34 34 38 Greatest Support 20 | 20 20 20 20 Greatest Overweight (x) 1 | . 1 1 1 Average Overweight (x) . | . . 1 1 Largest Inventory Capacity 15 | 8 15 15 15 Average Capacity 12 | 8 10 15 15 Most Carried 15 | 6 9 11 15 Average Carried 9 | 6 8 9 12 Final Capacity 15 | 8 15 15 15 Final Carried 14 | 6 9 11 14 Class Distribution -------------------- 100% | Mutant Dominant Class ---------------- Mutant | -10/Materials Mutant | -10/Mines Mutant | -10/Subcaves Resources | -11 -10 -10 -10 ----------- Run | Yrd Mat Min Sub Matter Collected 434 | 200 133 10 91 Remotely . | . . . . Salvage Created 873 | . 501 87 285 Parts 48 | . 24 5 19 Haulers Intercepted 1 | . 1 . . Recyclers Shooed . | . . . . Parts Field Recycled . | . . . . Retrieved Matter . | . . . . Parts Self-Destructed 11 | . . . 11 Prevented . | . . . . Kills | -11 -10 -10 -10 ------- Run | Yrd Mat Min Sub Combat Hostiles Destroyed 21 | . 13 2 6 Guns 14 | . 12 1 1 Cannons 7 | . 1 1 5 Classes Destroyed 5 | . 3 . 2 Hauler 1 | . 1 . . Swarmer 4 | . 3 . 1 Grunt 12 | . 10 2 . Sentry 1 | . . . 1 Subdweller 4 | . . . 4 Best Kill Streak 5 | . 5 2 2 Combat Bots Only 5 | . 5 2 2 Max Kills in Single Turn 1 | . 1 1 1 Gunslinging . | . . . . Exploded . | . . . . Melee . | . . . . Uniques/NPCs Destroyed . | . . . . Combat | -11 -10 -10 -10 -------- Run | Yrd Mat Min Sub Hostile Shots Fired 94 | . 59 9 26 Missed 21 | . 12 2 7 Hits 73 | . 47 7 19 Projectile 73 | . 47 7 19 Critical Strikes 2 | . 1 . 1 Damage Taken 1041 | . 539 89 413 Core 267 | . 136 23 108 Absorbed by Shields . | . . . . Core Remaining (%) 100 | 100 . . . Volleys Fired 72 | . 51 4 17 Largest 2 | . 2 2 2 Hottest 125 | . 125 125 110 Shots Fired 144 | . 102 7 35 Gun 110 | . 90 3 17 Cannon 34 | . 12 4 18 Launcher . | . . . . Special . | . . . . Kinetic 42 | . 39 . 3 Thermal 88 | . 63 7 18 Explosive . | . . . . Electromagnetic 14 | . . . 14 Robot Hit Streak 18 | . 10 2 18 Robot Miss Streak 3 | . 2 1 3 Penetration Max . | . . . . Secondary Targets 1 | . 1 . . Max Gunslinging Chain 1 | . 1 . . Shots Hit Robots 106 | . 74 4 28 Core Hits 40 | . 27 3 10 Critical Kills . | . . . . Critical Parts Destroyed . | . . . . Critical Strikes . | . . . . Melee Attacks . | . . . . Impact . | . . . . Slashing . | . . . . Piercing . | . . . . Sneak Attacks . | . . . . Combat Hostiles . | . . . . Follow-up Attacks . | . . . . Damage Inflicted 1459 | . 947 86 426 Guns 997 | . 767 33 197 Cannons 448 | . 166 53 229 Explosions . | . . . . Melee . | . . . . Ramming 14 | . 14 . . Kinetic 273 | . 210 . 63 Thermal 1038 | . 723 86 229 Explosive . | . . . . Electromagnetic 134 | . . . 134 Impact . | . . . . Slashing . | . . . . Piercing . | . . . . Highest Corruption 2 | . 2 2 2 Average Corruption 2 | . 2 2 2 Corruption Purged . | . . . . Corruption Blocked . | . . . . Effects 18 | . 3 3 12 Message Errors 4 | . 1 . 3 Matter Fused 8 | . 1 2 5 Heat Flow Errors 2 | . . . 2 Data Loss (minor) 2 | . 1 . 1 Misfires 1 | . . . 1 Weapon Failures 1 | . . 1 . Overload Shots . | . . . . Overflow Damage 6 | . 6 . . Projectiles 6 | . 6 . . Explosions . | . . . . Melee . | . . . . Knockbacks . | . . . . Impact . | . . . . Kinetic . | . . . . Secondary . | . . . . Self-Inflicted Damage . | . . . . Shots . | . . . . Rammed . | . . . . Targets Rammed 4 | . 4 . . Kicked 4 | . 4 . . Crushed . | . . . . Highest Temperature 356 | . 356 240 238 Average Temperature 122 | . 127 140 57 Received Heat Transfer 396 | . 279 48 69 Effects 2 | . 2 . . Energy Bleed 1 | . 1 . . Damage (minor) 1 | . 1 . . Siege Activations . | . . . . Martial Activations . | . . . . Shielding Activations . | . . . . Robots Disrupted . | . . . . Combat Hostiles . | . . . . Robots Corrupted . | . . . . Combat Hostiles . | . . . . Parts Fried . | . . . . Impact Corruptions . | . . . . Robots Melted . | . . . . Combat Hostiles . | . . . . Parts Melted 3 | . 2 . 1 Heat Transferred 2189 | . 1560 185 444 Parts Sabotaged . | . . . . Parts Stolen . | . . . . Parts Stripped . | . . . . Power Chain Reactions . | . . . . Alert | -11 -10 -10 -10 ------- Run | Yrd Mat Min Sub Maximum Alert Level . | . . . . Low Security (%) 100 | 100 100 100 . Level 1 . | . . . . Level 2 . | . . . . Level 3 . | . . . . Level 4 . | . . . . Level 5 . | . . . . High Security . | . . . . Max Security . | . . . . Peak Influence 140 | . 140 40 . Initial . | . . . . Average 39 | . 49 6 . Influence Increases 422 | . 330 50 42 Destroy 0b10 Robot/C 340 | . 260 40 40 Destroy 0b10 Robot/NC 5 | . 5 . . Destroy Leader 62 | . 52 10 . Allied During Kill 2 | . . . 2 Successful Hack 12 | . 12 . . Destroy Structure 1 | . 1 . . Influence Decreases 422 | . 330 50 42 Time Decay 392 | . 310 40 42 Lost Part 30 | . 20 10 . Squads Dispatched 2 | . 2 . . Investigation . | . . . . Extermination . | . . . . Reinforcement 2 | . 2 . . Assault . | . . . . Garrison . | . . . . Intercept . | . . . . Searches Triggered . | . . . . Construction Impeded . | . . . . Haulers Reinforced . | . . . . Active Scanning Responses . | . . . . Cargo Convoy Interrupts . | . . . . Stealth | -11 -10 -10 -10 --------- Run | Yrd Mat Min Sub Distress Signals 2 | . 2 . . Communications Jammed . | . . . . Distress Signals . | . . . . Times Spotted 28 | . 19 2 7 Peak Tracking Total 5 | . 5 2 2 Tactical Retreats . | . . . . Traps | -11 -10 -10 -10 ------- Run | Yrd Mat Min Sub Traps Triggered 1 | . 1 . . Indirectly . | . . . . Trap Hack Attempts . | . . . . Triggered . | . . . . Disarmed . | . . . . Reprogrammed . | . . . . Reused . | . . . . Traps Extracted . | . . . . Installed . | . . . . Triggered . | . . . . Machines | -11 -10 -10 -10 ---------- Run | Yrd Mat Min Sub Machines Disabled . | . . . . Max in Single Turn . | . . . . Machines Repaired . | . . . . Machines Dismantled . | . . . . Machines Sabotaged . | . . . . Overloaded Fab Kills . | . . . . Hacking | -11 -10 -10 -10 --------- Run | Yrd Mat Min Sub Machines Accessed 2 | . 2 . . Terminals 2 | . 2 . . Fabricators . | . . . . Repair Stations . | . . . . Recycling Units . | . . . . Scanalyzers . | . . . . Garrison Access . | . . . . Total Hacks 8 | . 8 . . Successful 4 | . 4 . . Failed 4 | . 4 . . Catastrophic 1 | . 1 . . Database Lockouts . | . . . . Manual 8 | . 8 . . Terminals 8 | . 8 . . Fabricators . | . . . . Repair Stations . | . . . . Recycling Units . | . . . . Scanalyzers . | . . . . Garrison Access . | . . . . Terminal Hacks 4 | . 4 . . Robot Analysis 2 | . 2 . . Prototype ID Bank 2 | . 2 . . Fabricator Hacks . | . . . . Repair Station Hacks . | . . . . Recycling Unit Hacks . | . . . . Scanalyzer . | . . . . Garrison Access Hacks . | . . . . Unauthorized Hacks . | . . . . Terminals . | . . . . Fabricators . | . . . . Repair Stations . | . . . . Recycling Units . | . . . . Scanalyzers . | . . . . Garrison Access . | . . . . Data Cores Recovered . | . . . . Used . | . . . . Hacking Detections 2 | . 2 . . Full Trace Events . | . . . . Feedback Events . | . . . . Feedback Blocked . | . . . . Robot Schematics Acquired . | . . . . Robots Built . | . . . . Authchips . | . . . . Time . | . . . . Total Robot Build Rating . | . . . . Part Schematics Acquired . | . . . . Parts Built . | . . . . Authchips . | . . . . Time . | . . . . Total Part Build Rating . | . . . . Parts Repaired . | . . . . Time . | . . . . Parts Recycled . | . . . . Recycled Matter . | . . . . Retrieved Matter . | . . . . Retrieved Components . | . . . . Parts Scanalyzed . | . . . . Part Schematics Acquired . | . . . . Parts Damaged . | . . . . Bothacking | -11 -10 -10 -10 ------------ Run | Yrd Mat Min Sub Used RIF Installer . | . . . . Robots Hacked . | . . . . Non-combat . | . . . . Combat . | . . . . Robot Hacks Applied . | . . . . Relay Couplers Released . | . . . . Fabnet Peak Effective % . | . . . . Robots Rewired . | . . . . Allies Hacked . | . . . . Hacks Repelled . | . . . . Allies | -11 -10 -10 -10 -------- Run | Yrd Mat Min Sub Total Allies 1 | . . 1 . Largest Group 1 | . . 1 1 Highest-Rated Group 31 | . . 31 31 Highest-Rated Ally 31 | . . 31 31 Total Orders . | . . . . Ally Attacks 1 | . . . 1 Total Damage 22 | . . . 22 Kills . | . . . . Allies Corrupted . | . . . . Allies Melted . | . . . . Intel | -11 -10 -10 -10 ------- Run | Yrd Mat Min Sub Active Infowar (turns) . | . . . . Robot Analysis Total 2 | . 2 . . Derelict Logs Recovered . | . . . . Drone Launches . | . . . . Drone Recoveries . | . . . . Exploration | -11 -10 -10 -10 ------------- Run | Yrd Mat Min Sub Turns Passed 1588 | 2 776 210 600 Spaces Moved 769 | 1 401 100 267 Core . | . . . . Treads . | . . . . Legs 769 | 1 401 100 267 Wheels . | . . . . Hover . | . . . . Flight . | . . . . Fastest Speed 120 | 120 120 190 190 Average Speed 164 | 120 140 190 190 Slowest Speed 190 | 120 190 190 190 Overloaded Moves . | . . . . Propulsion Burnouts . | . . . . Robots Hopped . | . . . . Potential Cave-ins . | . . . . Cave-ins Triggered . | . . . . Exploration Rate (%) 26 | 2 61 24 17 Regions Visited 3 Branch Regions 2 Pre-discovered Areas . | . . . . Known Exits Taken . | . . . . Unknown Exits Taken 3 | 1 1 1 . Scrap Searched 2 | . . . 2 Spaces Dug . | . . . . Terrain Destroyed . | . . . . Melee . | . . . . Projectile . | . . . . AOE . | . . . . Terrain Rammed . | . . . . Walls Destroyed . | . . . . Machines Disabled . | . . . . Actions | -11 -10 -10 -10 --------- Run | Yrd Mat Min Sub Total 953 | 1 514 111 327 Wait 79 | . 42 3 34 Move 766 | . 400 99 267 Hop . | . . . . Pick Up 11 | . 4 2 5 Fast Attach 1 | . 1 . . Attach 5 | . 2 1 2 Detach . | . . . . Swap 10 | 1 6 2 1 Drop 5 | . 4 . 1 Fire 72 | . 51 4 17 Melee . | . . . . Ram . | . . . . Kick 4 | . 4 . . Crush . | . . . . Escape Stasis . | . . . . Rewire . | . . . . Trap . | . . . . Miscellaneous . | . . . . Route ------- -11/Scrapyard -10/Materials (discovered 3 exits: [*Mat x2] / [*Min]) -10/Mines -10/Subcaves History --------- Turn | Location | Event 3 | -11/Scrapyard | Discovered new exit (range 0) 3 | -11/Scrapyard | Entered Materials 135 | -10/Materials | Discovered new exit (range 15) 312 | -10/Materials | Build established: Mutant 362 | -10/Materials | Discovered new exit (range 13) 550 | -10/Materials | Core integrity fell below 50% 659 | -10/Materials | Discovered new exit (range 15) 779 | -10/Materials | Entered Mines 883 | -10/Mines | Received a Mining Laser from a helpful Derelict 941 | -10/Mines | Discovered new exit (range 11) 942 | -10/Mines | YI-UF0 nonchalantly dropped a Grenade Launcher on the ground 989 | -10/Mines | Entered Subcaves 989 | -10/Subcaves | Accompanied by 1 ally 990 | -10/Subcaves | Approached by a straggling Scientist 1055 | -10/Subcaves | A swath of the cavern ceiling suddenly collapsed 1557 | -10/Subcaves | A swath of the cavern ceiling suddenly collapsed 1572 | -10/Subcaves | Core integrity fell below 20% 1589 | -10/Subcaves | Destroyed by OX-M9E(R) with Subdweller Machine Gun Last Messages --------------- 01459_ Acquired Sub. Power Source. 01471_ Searching scrap... 01471_ Found Sub. Machine Gun. 01471_ Found Riot Gun. 01471_ Found 48 Matter. 01479_ ELXJOOZXKUG8HW<07DY RF/WJJLWFYYMX8% 01481_ Acquired Sub. Machine Gun. 01491_ Searching scrap... 01491_ Found Sub. Beam Cannon. 01491_ Found Battle Rifle. 01491_ Found 33 Matter. 01495_ Dropped Beam Cannon. A9-6S4(c): "I think it's somewhere southeast of here" 01521_ System corrupted: FCS attempts to trigger Sub. Beam Cannon. 01521_ System corrupted: Sub. Beam Cannon misfires. A9-6S4(c): "I think it's somewhere east of here" 01557_ Derelict Log crushed. A swath of the cavern ceiling suddenly collapses. 01571_ EM Pulse Gun destroyed. 01587_ 99-Z0T(R) destroyed. Map ----- +----------------------------------------------------+ | #?## ##?????????????????????????????????????????? | | #### #?????????????????????????????????????????? | | ## ###?????????????????????????????????????????? | | ####??????????????????????????????????????????? | | #####??????????????????????????????????????? | | ##?????????????????????????????????????? | | #?????????????????????????????????????? | | #?????????????????????????????????????? | | ## #?????????????????????????????????????? | | ## #?????????????????????????????????????? | | ### ##?????????????????????????????????????? | | #?## #????#?????????????????????????????????? | | ???## ##?# ##????????????????????????????????? | | ????# # # ####?????????????????????????????? | | ????## #?????????????????????????????? | | ?????# !!### #???????????????????????????? | | ?????##!%##?# #??????????????????????????? | | ###### &&##? #?????##??????????????????????????? | | # ## ## #??????????##?????????????????????? | | # "##" #????????? ? # #?????????????????? | | ## &[ #???????? ???????????????????? | | #][#%# #?#???#### #?????????????????????? | | # %### #? ####; ####?????????????????????? | | ####?# ###### ;;#&#?????##???????????????? | | ?????## ####?#" =####;##???"" ????????????????? | | ??????## ##????#""##??#;@##""#" #?????????????? | | ???????## #####?#"###??##!R| "" #?????????????? | | ???????## # # ###" ##???#;##;# #????????????? | | ???????# "#????###??#??????#????????????? | | ???????###### #"#"#????????????????????????????? | | ????????????#########????????????????????????????? | | ?????????????????????????????????????????????????? | | ?????????????????????????????????????????????????? | | ?????????????????????????????????????????????????? | | ?????????????????????????????????????????????????? | | ?????????????????????????????????????????????????? | | ?????????????????????????????????????????????????? | | ?????????????????????????????????????????????????? | | ?????????????????????????????????????????????????? | | ?????????????????????????????????????????????????? | | ?????????????????????????????????????????????????? | | ?????????????????????????????????????????????????? | | ?????????????????????????????????????????????????? | | ?????????????????????????????????????????????????? | | ?????????????????????????????????????????????????? | | ?????????????????????????????????????????????????? | | ?????????????????????????????????????????????????? | | ?????????????????????????????????????????????????? | | ?????????????????????????????????????????????????? | | ?????????????????????????????????????????????????? | +----------------------------------------------------+ Best States ------------- Heat Dissipation 25 Energy Generation 15 Energy Capacity 250 Matter Stores 300 Matter Capacity 300 Sight Range 16 Terrain Scan Density 10 Armor Coverage 150 Evasion (%) 55 Item Schematics ----------------- None Robot Schematics ------------------ None Fabricated ------------ Nothing Repaired ---------- Nothing Alien Tech Used ----------------- None Achievements -------------- None Challenges ------------ None Game ------ Seed RiotDeuteriumFemtoactuators Manual? 0 Play Time 00:10:00 Cumulative 382.6 hours Start 2025.06.22 @ 15:24:45 End 2025.06.22 @ 15:32:37 Sessions 1 Manual Loads 0 Difficulty Rogue Special Mode None Game No. 475 Rogue 475 Adventurer 0 Explorer 0 Win Type - Total 30 Types 14/1/9/1/1/1/0/1/1/1 Lore% 86 Gallery% 78 Achievement% 77 Wizard Run 0 Options --------- Layout 0 ASCII 0 Keyboard 0 Movement Numpad Keybinds 0 Fullscreen 1 Font 18/SmallcapsGlow Map View 76x50 Zoom Use 0% Tactical HUD 1 Map Filters NONE Filters NONE Steam 1 RUN: 2fc652d3-810a-4afa-9b94-f836c4829edb